fUST/lending_fUST_20240605
["ID","MTS","AMOUNT","RATE_DAILY","PERIOD"]
[328593778,1717585851106,-624.16065565,0.000221,2]
[328593779,1717585851118,-154.9690062,0.00022189,2]
[328593780,1717585851130,-157.46937655,0.00022189,2]
[328593781,1717585851143,-52640.9688618,0.00022189,2]
[328593782,1717585851155,-500.0,0.00022191,2]
[328593783,1717585851168,-500.0,0.00022191,2]
[328593784,1717585851181,-633.5632919,0.00022191,2]
[328593785,1717585851195,-500.0,0.00022191,2]
[328593786,1717585851210,-1511.76,0.00022191,2]
[328593787,1717585851223,-500.0,0.00022191,2]
[328593788,1717585851233,-500.0,0.00022191,2]
[328593789,1717585851244,-500.0,0.00022191,2]
[328593790,1717585851256,-500.0,0.00022191,2]
[328593791,1717585851266,-500.0,0.00022191,2]
[328593792,1717585851278,-500.0,0.00022191,2]
[328593793,1717585851290,-500.0,0.00022191,2]
[328593794,1717585851303,-500.0,0.00022191,2]
[328593795,1717585851315,-290.77,0.00022191,2]
[328593796,1717585851326,-863.99,0.00022191,2]
[328593797,1717585851338,-500.0,0.00022191,2]
[328593798,1717585851348,-500.0,0.00022191,2]
[328593799,1717585851360,-880.03,0.00022191,2]
[328593800,1717585851371,-500.0,0.00022191,2]
[328593801,1717585851383,-375.81,0.00022191,2]
[328593802,1717585851394,-1114.5,0.00022191,2]
[328593803,1717585851405,-500.0,0.00022191,2]
[328593804,1717585851415,-500.0,0.00022191,2]
[328593805,1717585851426,-500.0,0.00022191,2]
[328593806,1717585851438,-500.0,0.00022191,2]
[328593807,1717585851449,-500.0,0.00022191,2]
[328593808,1717585851460,-500.0,0.00022191,2]
[328593809,1717585851471,-500.0,0.00022191,2]
[328593810,1717585851482,-500.0,0.00022191,2]
[328593811,1717585851492,-208.67,0.00022191,2]
[328593812,1717585851503,-500.0,0.00022191,2]
[328593813,1717585851519,-500.0,0.00022191,2]
[328593814,1717585851530,-308.22967284,0.00022191,2]
[328593815,1717585851541,-500.0,0.00022191,2]
[328593816,1717585851552,-500.0,0.00022191,2]
[328593817,1717585851564,-1051.82,0.00022191,2]
[328593818,1717585851575,-360.09161874,0.00022191,2]
[328593819,1717585851588,-500.0,0.00022191,2]
[328593820,1717585851598,-500.0,0.00022191,2]
[328593821,1717585851610,-500.0,0.00022191,2]
[328593822,1717585851621,-574.95,0.00022191,2]
[328593823,1717585851633,-595.88,0.00022191,2]
[328593824,1717585851644,-500.0,0.00022191,2]
[328593825,1717585851655,-1082.14,0.00022191,2]
[328593826,1717585851667,-1267.06,0.00022191,2]
[328593827,1717585851678,-615.45,0.00022191,2]
[328593828,1717585851689,-500.0,0.00022191,2]
[328593829,1717585851700,-500.0,0.00022191,2]
[328593830,1717585851711,-833.38,0.00022191,2]
[328593831,1717585851723,-500.0,0.00022191,2]
[328593832,1717585851736,-500.0,0.00022191,2]
[328593833,1717585851746,-500.0,0.00022191,2]
[328593834,1717585851759,-500.0,0.00022191,2]
[328593835,1717585851770,-500.0,0.00022191,2]
[328593836,1717585851781,-1017.88,0.00022191,2]
[328593837,1717585851793,-500.0,0.00022191,2]
[328593838,1717585851804,-1479.42,0.00022191,2]
[328593839,1717585851815,-500.0,0.00022191,2]
[328593840,1717585851826,-500.0,0.00022191,2]
[328593841,1717585851838,-347.58687298,0.00022191,2]
[328593842,1717585851849,-500.0,0.00022191,2]
[328593843,1717585851860,-1676.83,0.00022191,2]
[328593844,1717585851871,-1092.27,0.00022191,2]
[328593845,1717585851883,-500.0,0.00022191,2]
[328593846,1717585851894,-635.63,0.00022191,2]
[328593847,1717585851905,-500.0,0.00022191,2]
[328593848,1717585851916,-500.0,0.00022191,2]
[328593849,1717585851927,-500.0,0.00022191,2]
[328593850,1717585851938,-500.0,0.00022191,2]
[328593851,1717585851949,-6206.79,0.00022191,2]
[328593852,1717585851960,-500.0,0.00022191,2]
[328593853,1717585851972,-500.0,0.00022191,2]
[328593854,1717585851983,-500.0,0.00022191,2]
[328593855,1717585851995,-866.93,0.00022191,2]
[328593856,1717585852007,-500.0,0.00022191,2]
[328593857,1717585852019,-500.0,0.00022191,2]
[328593858,1717585852030,-500.0,0.00022191,2]
[328593859,1717585852041,-500.0,0.00022191,2]
[328593860,1717585852052,-500.0,0.00022191,2]
[328593861,1717585852064,-500.0,0.00022191,2]
[328593862,1717585852075,-500.0,0.00022191,2]
[328593863,1717585852086,-500.0,0.00022191,2]
[328593864,1717585852098,-514.2,0.00022191,2]
[328593865,1717585852109,-500.0,0.00022191,2]
[328593866,1717585852120,-500.0,0.00022191,2]
[328593867,1717585852131,-500.0,0.00022191,2]
[328593868,1717585852142,-2252.9,0.00022191,2]
[328593869,1717585852152,-698.8,0.00022191,2]
[328593870,1717585852164,-500.0,0.00022191,2]
[328593871,1717585852176,-589.15,0.00022191,2]
[328593872,1717585852187,-1967.56,0.00022191,2]
[328593873,1717585852342,-500.0,0.00022191,2]
[328593874,1717585852352,-500.0,0.00022191,2]
[328593875,1717585852362,-500.0,0.00022191,2]
[328593876,1717585852372,-500.0,0.00022191,2]
[328593877,1717585852382,-500.0,0.00022191,2]
[328593878,1717585852392,-2529.83,0.00022191,2]
[328593879,1717585852401,-500.0,0.00022191,2]
[328593880,1717585852411,-2208.26,0.00022191,2]
[328593881,1717585852421,-500.0,0.00022191,2]
[328593882,1717585852430,-701.91,0.00022191,2]
[328593883,1717585852439,-899.94,0.00022191,2]
[328593884,1717585852451,-500.0,0.00022191,2]
[328593885,1717585852460,-4273.03,0.00022191,2]
[328593886,1717585852470,-954.51,0.00022191,2]
[328593887,1717585852479,-1254.35,0.00022191,2]
[328593888,1717585852488,-4660.75,0.00022191,2]
[328593889,1717585852497,-1469.3,0.00022191,2]
[328593890,1717585852509,-500.0,0.00022191,2]
[328593891,1717585852522,-500.0,0.00022191,2]
[328593892,1717585852531,-500.0,0.00022191,2]
[328593893,1717585852541,-744.82,0.00022191,2]
[328593894,1717585852551,-500.0,0.00022191,2]
[328593895,1717585852561,-500.0,0.00022191,2]
[328593896,1717585852571,-1218.57,0.00022191,2]
[328593897,1717585852580,-900.9,0.00022191,2]
[328593898,1717585852590,-2666.75,0.00022191,2]
[328593899,1717585852604,-713.51,0.00022191,2]
[328593900,1717585852614,-500.0,0.00022191,2]
[328593901,1717585852624,-500.0,0.00022191,2]
[328593902,1717585852634,-500.0,0.00022191,2]
[328593903,1717585852643,-500.0,0.00022191,2]
[328593904,1717585852652,-236.0,0.00022192,2]
[328593905,1717585852661,-155.16111535,0.00022278,2]
[328593906,1717585852671,-154.9690062,0.00022279,2]
[328593907,1717585852680,-166.666666,0.00022431,2]
[328593908,1717585852690,-263.1,0.00022456,5]
[328593909,1717585852700,-252.23500693,0.00022463,2]
[328593910,1717585852710,-259.59621833,0.00022463,2]
[328593911,1717585852719,-155.04648605,0.00022464,2]
[328593912,1717585852729,-231.6410875,0.00022465,2]
[328593913,1717585852739,-500.0,0.00022465,2]
[328593914,1717585852749,-500.0,0.00022465,2]
[328593915,1717585852760,-1511.76,0.00022465,2]
[328593916,1717585852770,-500.0,0.00022465,2]
[328593917,1717585852779,-500.0,0.00022465,2]
[328593918,1717585852789,-500.0,0.00022465,2]
[328593919,1717585852799,-500.0,0.00022465,2]
[328593920,1717585852809,-500.0,0.00022465,2]
[328593921,1717585852819,-500.0,0.00022465,2]
[328593922,1717585852828,-500.0,0.00022465,2]
[328593923,1717585852838,-444.22016201,0.00022465,2]
[328593924,1717585852847,-863.99,0.00022465,2]
[328593925,1717585852856,-500.0,0.00022465,2]
[328593926,1717585852865,-500.0,0.00022465,2]
[328593927,1717585852875,-880.03,0.00022465,2]
[328593928,1717585852884,-572.38893283,0.00022465,2]
[328593929,1717585852894,-1114.5,0.00022465,2]
[328593930,1717585852903,-500.0,0.00022465,2]
[328593931,1717585852913,-500.0,0.00022465,2]
[328593932,1717585852923,-500.0,0.00022465,2]
[328593933,1717585852932,-500.0,0.00022465,2]
[328593934,1717585852941,-500.0,0.00022465,2]
[328593935,1717585852951,-500.0,0.00022465,2]
[328593936,1717585852960,-500.0,0.00022465,2]
[328593937,1717585852970,-500.0,0.00022465,2]
[328593938,1717585852979,-500.0,0.00022465,2]
[328593939,1717585852988,-500.0,0.00022465,2]
[328593940,1717585852998,-500.0,0.00022465,2]
[328593941,1717585853009,-595.63743304,0.00022465,2]
[328593942,1717585853018,-1051.82,0.00022465,2]
[328593943,1717585853028,-500.0,0.00022465,2]
[328593944,1717585853037,-500.0,0.00022465,2]
[328593945,1717585853046,-500.0,0.00022465,2]
[328593946,1717585853055,-574.95,0.00022465,2]
[328593947,1717585853065,-595.88,0.00022465,2]
[328593948,1717585853075,-500.0,0.00022465,2]
[328593949,1717585853084,-1082.14,0.00022465,2]
[328593950,1717585853093,-1267.06,0.00022465,2]
[328593951,1717585853103,-615.45,0.00022465,2]
[328593952,1717585853112,-500.0,0.00022465,2]
[328593953,1717585853122,-236.68423238,0.00022465,2]
[328593954,1717585853131,-833.38,0.00022465,2]
[328593955,1717585853140,-500.0,0.00022465,2]
[328593956,1717585853150,-500.0,0.00022465,2]
[328593957,1717585853159,-500.0,0.00022465,2]
[328593958,1717585853169,-500.0,0.00022465,2]
[328593959,1717585853178,-500.0,0.00022465,2]
[328593960,1717585853187,-1017.88,0.00022465,2]
[328593961,1717585853197,-500.0,0.00022465,2]
[328593962,1717585853206,-1479.42,0.00022465,2]
[328593963,1717585853224,-500.0,0.00022465,2]
[328593964,1717585853237,-443.35612665,0.00022465,2]
[328593965,1717585853247,-500.0,0.00022465,2]
[328593966,1717585853259,-1676.83,0.00022465,2]
[328593967,1717585853269,-1092.27,0.00022465,2]
[328593968,1717585853279,-500.0,0.00022465,2]
[328593969,1717585853289,-635.63,0.00022465,2]
[328593970,1717585853299,-500.0,0.00022465,2]
[328593971,1717585853309,-500.0,0.00022465,2]
[328593972,1717585853318,-500.0,0.00022465,2]
[328593973,1717585853328,-500.0,0.00022465,2]
[328593974,1717585853338,-6206.79,0.00022465,2]
[328593975,1717585853348,-500.0,0.00022465,2]
[328593976,1717585853357,-500.0,0.00022465,2]
[328593977,1717585853367,-500.0,0.00022465,2]
[328593978,1717585853377,-866.93,0.00022465,2]
[328593979,1717585853386,-500.0,0.00022465,2]
[328593980,1717585853396,-500.0,0.00022465,2]
[328593981,1717585853406,-500.0,0.00022465,2]
[328593982,1717585853416,-500.0,0.00022465,2]
[328593983,1717585853425,-500.0,0.00022465,2]
[328593984,1717585853435,-500.0,0.00022465,2]
[328593985,1717585853444,-500.0,0.00022465,2]
[328593986,1717585853454,-500.0,0.00022465,2]
[328593987,1717585853464,-514.2,0.00022465,2]
[328593988,1717585853474,-500.0,0.00022465,2]
[328593989,1717585853483,-500.0,0.00022465,2]
[328593990,1717585853492,-153.34927809,0.00022465,2]
[328593991,1717585853502,-2252.9,0.00022465,2]
[328593992,1717585853512,-698.8,0.00022465,2]
[328593993,1717585853525,-500.0,0.00022465,2]
[328593994,1717585853535,-589.15,0.00022465,2]
[328593995,1717585853545,-1967.56,0.00022465,2]
[328593996,1717585853556,-500.0,0.00022465,2]
[328593997,1717585853566,-500.0,0.00022465,2]
[328593998,1717585853576,-500.0,0.00022465,2]
[328593999,1717585853586,-500.0,0.00022465,2]
[328594000,1717585853598,-500.0,0.00022465,2]
[328594001,1717585853608,-2529.83,0.00022465,2]
[328594002,1717585853617,-500.0,0.00022465,2]
[328594003,1717585853627,-2208.26,0.00022465,2]
[328594004,1717585853637,-500.0,0.00022465,2]
[328594005,1717585853646,-701.91,0.00022465,2]
[328594006,1717585853656,-899.94,0.00022465,2]
[328594007,1717585853666,-500.0,0.00022465,2]
[328594008,1717585853675,-4273.03,0.00022465,2]
[328594009,1717585853686,-954.51,0.00022465,2]
[328594010,1717585853695,-1254.35,0.00022465,2]
[328594011,1717585853705,-4660.75,0.00022465,2]
[328594012,1717585853714,-1469.3,0.00022465,2]
[328594013,1717585853724,-500.0,0.00022465,2]
[328594014,1717585853734,-500.0,0.00022465,2]
[328594015,1717585853743,-744.82,0.00022465,2]
[328594016,1717585853754,-500.0,0.00022465,2]
[328594017,1717585853763,-500.0,0.00022465,2]
[328594018,1717585853773,-1218.57,0.00022465,2]
[328594019,1717585853782,-900.9,0.00022465,2]
[328594020,1717585853792,-2666.75,0.00022465,2]
[328594021,1717585853802,-713.51,0.00022465,2]
[328594022,1717585853812,-500.0,0.00022465,2]
[328594023,1717585853822,-500.0,0.00022465,2]
[328594024,1717585853832,-500.0,0.00022465,2]
[328594025,1717585853842,-199.65674817,0.00022465,2]
[328594026,1717585853851,-665.8520884,0.00022497,2]
[328594027,1717585853861,-31869.47514861,0.000225,2]
[328594028,1717585853870,-500.0,0.00022561,7]
[328594029,1717585853880,-500.0,0.00022561,7]
[328594030,1717585853889,-500.0,0.00022561,7]
[328594031,1717585853900,-500.0,0.00022561,7]
[328594032,1717585853909,-500.0,0.00022561,7]
[328594033,1717585853919,-500.0,0.00022561,7]
[328594034,1717585853930,-500.0,0.00022561,7]
[328594035,1717585853939,-500.0,0.00022561,7]
[328594036,1717585853950,-500.0,0.00022561,7]
[328594037,1717585853960,-500.0,0.00022561,7]
[328594038,1717585853970,-500.0,0.00022561,7]
[328594039,1717585853980,-500.0,0.00022561,7]
[328594040,1717585853990,-500.0,0.00022561,7]
[328594041,1717585854000,-500.0,0.00022561,7]
[328594042,1717585854010,-500.0,0.00022561,7]
[328594043,1717585854020,-500.0,0.00022561,7]
[328594044,1717585854030,-412.06,0.00022561,7]
[328594045,1717585854040,-500.0,0.00022561,7]
[328594046,1717585854050,-257.69875622,0.00022737,2]
[328594047,1717585854059,-182.84648605,0.00022737,2]
[328594048,1717585854073,-500.0,0.00022739,2]
[328594049,1717585854084,-343.20392684,0.00022739,2]
[328594050,1717585854094,-1511.76,0.00022739,2]
[328594051,1717585854103,-500.0,0.00022739,2]
[328594052,1717585854113,-500.0,0.00022739,2]
[328594053,1717585854123,-500.0,0.00022739,2]
[328594054,1717585854133,-500.0,0.00022739,2]
[328594055,1717585854142,-500.0,0.00022739,2]
[328594056,1717585854152,-500.0,0.00022739,2]
[328594057,1717585854161,-500.0,0.00022739,2]
[328594058,1717585854171,-863.99,0.00022739,2]
[328594059,1717585854181,-500.0,0.00022739,2]
[328594060,1717585854190,-500.0,0.00022739,2]
[328594061,1717585854200,-880.03,0.00022739,2]
[328594062,1717585854209,-1114.5,0.00022739,2]
[328594063,1717585854219,-500.0,0.00022739,2]
[328594064,1717585854228,-500.0,0.00022739,2]
[328594065,1717585854238,-500.0,0.00022739,2]
[328594066,1717585854248,-500.0,0.00022739,2]
[328594067,1717585854258,-500.0,0.00022739,2]
[328594068,1717585854268,-500.0,0.00022739,2]
[328594069,1717585854277,-641.14793047,0.00022739,2]
[328594070,1717585854287,-500.0,0.00022739,2]
[328594071,1717585854296,-500.0,0.00022739,2]
[328594072,1717585854305,-500.0,0.00022739,2]
[328594073,1717585854315,-500.0,0.00022739,2]
[328594074,1717585854325,-1051.82,0.00022739,2]
[328594075,1717585854334,-500.0,0.00022739,2]
[328594076,1717585854343,-500.0,0.00022739,2]
[328594077,1717585854353,-500.0,0.00022739,2]
[328594078,1717585854363,-574.95,0.00022739,2]
[328594079,1717585854372,-595.88,0.00022739,2]
[328594080,1717585854381,-500.0,0.00022739,2]
[328594081,1717585854391,-1082.14,0.00022739,2]
[328594082,1717585854400,-1267.06,0.00022739,2]
[328594083,1717585854411,-615.45,0.00022739,2]
[328594084,1717585854420,-356.67,0.00022739,2]
[328594085,1717585854430,-833.38,0.00022739,2]
[328594086,1717585854439,-500.0,0.00022739,2]
[328594087,1717585854449,-369.4906469,0.00022739,2]
[328594088,1717585854458,-500.0,0.00022739,2]
[328594089,1717585854468,-500.0,0.00022739,2]
[328594090,1717585854478,-500.0,0.00022739,2]
[328594091,1717585854487,-1017.88,0.00022739,2]
[328594092,1717585854496,-500.0,0.00022739,2]
[328594093,1717585854507,-1479.42,0.00022739,2]
[328594094,1717585854518,-500.0,0.00022739,2]
[328594095,1717585854529,-500.0,0.00022739,2]
[328594096,1717585854538,-1676.83,0.00022739,2]
[328594097,1717585854548,-1092.27,0.00022739,2]
[328594098,1717585854559,-500.0,0.00022739,2]
[328594099,1717585854568,-635.63,0.00022739,2]
[328594100,1717585854578,-500.0,0.00022739,2]
[328594101,1717585854589,-500.0,0.00022739,2]
[328594102,1717585854600,-500.0,0.00022739,2]
[328594103,1717585854609,-500.0,0.00022739,2]
[328594104,1717585854619,-6206.79,0.00022739,2]
[328594105,1717585854628,-500.0,0.00022739,2]
[328594106,1717585854638,-500.0,0.00022739,2]
[328594107,1717585854647,-500.0,0.00022739,2]
[328594108,1717585854656,-866.93,0.00022739,2]
[328594109,1717585854666,-500.0,0.00022739,2]
[328594110,1717585854676,-500.0,0.00022739,2]
[328594111,1717585854685,-162.965779,0.00022739,2]
[328594112,1717585854695,-500.0,0.00022739,2]
[328594113,1717585854704,-500.0,0.00022739,2]
[328594114,1717585854714,-500.0,0.00022739,2]
[328594115,1717585854723,-500.0,0.00022739,2]
[328594116,1717585854733,-500.0,0.00022739,2]
[328594117,1717585854743,-514.2,0.00022739,2]
[328594118,1717585854752,-500.0,0.00022739,2]
[328594119,1717585854762,-500.0,0.00022739,2]
[328594120,1717585854771,-2252.9,0.00022739,2]
[328594121,1717585854781,-698.8,0.00022739,2]
[328594122,1717585854790,-500.0,0.00022739,2]
[328594123,1717585854799,-589.15,0.00022739,2]
[328594124,1717585854808,-1967.56,0.00022739,2]
[328594125,1717585854818,-500.0,0.00022739,2]
[328594126,1717585854827,-500.0,0.00022739,2]
[328594127,1717585854836,-500.0,0.00022739,2]
[328594128,1717585854846,-500.0,0.00022739,2]
[328594129,1717585854856,-500.0,0.00022739,2]
[328594130,1717585854865,-2529.83,0.00022739,2]
[328594131,1717585854875,-500.0,0.00022739,2]
[328594132,1717585854884,-2208.26,0.00022739,2]
[328594133,1717585854893,-500.0,0.00022739,2]
[328594134,1717585854903,-701.91,0.00022739,2]
[328594135,1717585854912,-899.94,0.00022739,2]
[328594136,1717585854922,-4273.03,0.00022739,2]
[328594137,1717585854932,-500.0,0.00022739,2]
[328594138,1717585854941,-954.51,0.00022739,2]
[328594139,1717585854951,-1254.35,0.00022739,2]
[328594140,1717585854960,-4660.75,0.00022739,2]
[328594141,1717585854970,-1469.3,0.00022739,2]
[328594142,1717585854980,-500.0,0.00022739,2]
[328594143,1717585854990,-500.0,0.00022739,2]
[328594144,1717585854999,-744.82,0.00022739,2]
[328594145,1717585855008,-500.0,0.00022739,2]
[328594146,1717585855018,-500.0,0.00022739,2]
[328594147,1717585855027,-1218.57,0.00022739,2]
[328594148,1717585855037,-900.9,0.00022739,2]
[328594149,1717585855046,-2666.75,0.00022739,2]
[328594150,1717585855056,-713.51,0.00022739,2]
[328594151,1717585855066,-500.0,0.00022739,2]
[328594152,1717585855075,-500.0,0.00022739,2]
[328594153,1717585855085,-500.0,0.00022739,2]
[328594154,1717585855095,-166.666666,0.00022944,2]
[328594155,1717585855104,-206.87686254,0.00023,2]
[328594156,1717585855114,-1000.0,0.00023,12]
[328594157,1717585855123,-10836.4087907,0.00023011,2]
[328594158,1717585855132,-3067.16672527,0.00023011,2]
[328594159,1717585855384,-1009.40059611,0.00023011,2]
[328594160,1717585855396,-3836.80672207,0.00023011,2]
[328594161,1717585855405,-157.59071324,0.00023012,2]
[328594162,1717585855415,-154.95351395,0.00023012,2]
[328594163,1717585855425,-500.0,0.00023013,2]
[328594164,1717585855435,-1511.76,0.00023013,2]
[328594165,1717585855444,-500.0,0.00023013,2]
[328594166,1717585855453,-500.0,0.00023013,2]
[328594167,1717585855463,-500.0,0.00023013,2]
[328594168,1717585855472,-500.0,0.00023013,2]
[328594169,1717585855482,-500.0,0.00023013,2]
[328594170,1717585855491,-218.03168543,0.00023013,2]
[328594171,1717585855501,-500.0,0.00023013,2]
[328594172,1717585855514,-863.99,0.00023013,2]
[328594173,1717585855526,-500.0,0.00023013,2]
[328594174,1717585855536,-500.0,0.00023013,2]
[328594175,1717585855546,-880.03,0.00023013,2]
[328594176,1717585855555,-1114.5,0.00023013,2]
[328594177,1717585855567,-500.0,0.00023013,2]
[328594178,1717585855577,-500.0,0.00023013,2]
[328594179,1717585855587,-500.0,0.00023013,2]
[328594180,1717585855599,-500.0,0.00023013,2]
[328594181,1717585855609,-500.0,0.00023013,2]
[328594182,1717585855618,-500.0,0.00023013,2]
[328594183,1717585855628,-500.0,0.00023013,2]
[328594184,1717585855638,-500.0,0.00023013,2]
[328594185,1717585855647,-500.0,0.00023013,2]
[328594186,1717585855657,-1051.82,0.00023013,2]
[328594187,1717585855667,-500.0,0.00023013,2]
[328594188,1717585855676,-500.0,0.00023013,2]
[328594189,1717585855686,-500.0,0.00023013,2]
[328594190,1717585855695,-574.95,0.00023013,2]
[328594191,1717585855705,-595.88,0.00023013,2]
[328594192,1717585855714,-500.0,0.00023013,2]
[328594193,1717585855724,-1082.14,0.00023013,2]
[328594194,1717585855733,-1267.06,0.00023013,2]
[328594195,1717585855743,-615.45,0.00023013,2]
[328594196,1717585855754,-833.38,0.00023013,2]
[328594197,1717585855763,-500.0,0.00023013,2]
[328594198,1717585855773,-500.0,0.00023013,2]
[328594199,1717585855783,-500.0,0.00023013,2]
[328594200,1717585855793,-500.0,0.00023013,2]
[328594201,1717585855802,-1017.88,0.00023013,2]
[328594202,1717585855812,-500.0,0.00023013,2]
[328594203,1717585855822,-1479.42,0.00023013,2]
[328594204,1717585855831,-230.62300859,0.00023013,2]
[328594205,1717585855843,-269.37699141,0.00023013,2]
[328594206,1717585855852,-500.0,0.00023013,2]
[328594207,1717585855861,-1676.83,0.00023013,2]
[328594208,1717585855871,-1092.27,0.00023013,2]
[328594209,1717585855880,-500.0,0.00023013,2]
[328594210,1717585855890,-635.63,0.00023013,2]
[328594211,1717585855899,-500.0,0.00023013,2]
[328594212,1717585855908,-500.0,0.00023013,2]
[328594213,1717585855918,-490.54102898,0.00023013,2]
[328594214,1717585855927,-500.0,0.00023013,2]
[328594215,1717585855936,-354.00201459,0.00023013,2]
[328594216,1717585855970,-1402.45,0.00019176,2]
[328594217,1717585855981,-187.20755901,0.00019176,2]
[328594218,1717585855991,-340.009586,0.00019178,2]
[328594219,1717585856000,-340.009586,0.00019178,2]
[328594220,1717585856011,-5432.67326899,0.00023013,2]
[328594221,1717585856076,-1909.96781027,0.00019176,2]
[328594222,1717585856086,-340.009586,0.00019178,2]
[328594223,1717585856095,-340.009586,0.00019178,2]
[328594224,1717585856105,-340.009586,0.00019178,2]
[328594225,1717585856114,-340.009586,0.00019178,2]
[328594226,1717585856124,-340.009577,0.00019178,2]
[328594227,1717585856133,-420.11471642,0.00023013,2]
[328594228,1717585856143,-500.0,0.00023013,2]
[328594229,1717585856152,-500.0,0.00023013,2]
[328594230,1717585856161,-93.71713691,0.00023013,2]
[328594233,1717585923770,212.77687103,9.999e-05,2]
[328594234,1717585981166,161.01767511,9.999e-05,2]
[328594238,1717586042511,759.42126626,9.999e-05,2]
[328594239,1717586065148,154.98450155,9.999e-05,2]
[328594240,1717586087690,1220.57483245,9.999e-05,2]
[328594241,1717586094270,1633.07254029,9.999e-05,7]
[328594242,1717586343898,997.9923133,0.00029886,120]
[328594246,1717586525849,1633.07254029,0.00014883,7]
[328594247,1717586705020,-1909.96781027,0.00014215,2]
[328594248,1717586705043,-1441.26646871,0.00014215,2]
[328594249,1717586705064,-702.76084133,0.00014216,2]
[328594250,1717586705085,-46609.64023458,0.00014311,2]
[328594251,1717586705106,-7913.37404345,0.00014312,2]
[328594252,1717586705127,-2640.8656152,0.00014313,2]
[328594253,1717586705148,-272.3727093,0.00014314,2]
[328594254,1717586705169,-19295.71547601,0.00014314,2]
[328594255,1717586705190,-42073.99799306,0.00014315,2]
[328594256,1717586705212,-24900.0,0.00014318,2]
[328594257,1717586705233,-269.76728235,0.00015,2]
[328594258,1717586705254,-155.37154821,0.00015,2]
[328594259,1717586705275,-80000.0,0.00015,2]
[328594260,1717586705310,212.77687103,0.00014214,2]
[328594261,1717586731483,926.80712558,9.999e-05,2]
[328594264,1717586756900,187.72279245,9.999e-05,2]
[328594266,1717586760587,302.73262901,9.999e-05,2]
[328594267,1717586823210,1139.07338121,0.0001,2]
[328594268,1717586838700,1618.43972382,0.0001,2]
[328594329,1717586862256,411.29938372,9.999e-05,2]
[328594330,1717586863322,300.40535493,0.00015,2]
[328594331,1717586912862,1633.07254029,0.00015921,7]
[328594364,1717587032197,-190.37021129,0.00015817,2]
[328594366,1717587032207,-260.12980989,0.00015818,2]
[328594368,1717587032217,-11089.38713808,0.00015916,2]
[328594370,1717587032226,-9582.6962167,0.00015917,2]
[328594372,1717587032236,-2408.71611034,0.00015918,2]
[328594374,1717587032245,-34538.80739457,0.00015921,2]
[328594376,1717587032258,-14425.93669868,0.00015921,2]
[328594378,1717587032267,-196.45993721,0.00015928,2]
[328594380,1717587032278,-702.76084127,0.00016028,2]
[328594382,1717587032287,-212.77687103,0.00016434,2]
[328594384,1717587032297,-1441.26646871,0.00016435,2]
[328594386,1717587032307,-828.69673229,0.00016436,2]
[328594388,1717587032316,-275.41243105,0.000165,2]
[328594390,1717587032326,-262.138081,0.00016521,2]
[328594392,1717587032335,-702.76084127,0.0001784,2]
[328594394,1717587032344,-30012.93227066,0.00018897,2]
[328594396,1717587032356,-848.37,0.00018897,2]